fUSD/lending_fUSD_20251024
["ID","MTS","AMOUNT","RATE_DAILY","PERIOD"]
[392307897,1761322362654,-417.201629,0.00040104,120]
[392307898,1761322362664,-454.457686,0.00040149,120]
[392307899,1761322362673,-454.457686,0.00040149,120]
[392307900,1761322362682,-490.4042,0.00040149,120]
[392307901,1761322362691,-417.201629,0.00040149,120]
[392307902,1761322362701,-417.201629,0.00040159,120]
[392307903,1761322362710,-454.457686,0.00040159,120]
[392307904,1761322362720,-454.457686,0.00040159,120]
[392307905,1761322362729,-490.4042,0.00040159,120]
[392307906,1761322362738,-417.201629,0.00040159,120]
[392307907,1761322362749,-454.457686,0.00040179,120]
[392307908,1761322362762,-417.201629,0.00040179,120]
[392307909,1761322362772,-454.457686,0.00040179,120]
[392307910,1761322362781,-490.4042,0.00040179,120]
[392307911,1761322362792,-448.9,0.00041095,30]
[392307912,1761322362803,-714.86,0.00041369,30]
[392307913,1761322362812,-500.0,0.00041643,30]
[392307914,1761322362822,-714.86,0.00041643,30]
[392307915,1761322362833,-500.0,0.00041917,30]
[392307916,1761322362842,-500.0,0.00041917,30]
[392307917,1761322362851,-714.86,0.00041917,30]
[392307918,1761322362861,-1094.31,0.00042191,30]
[392307919,1761322362870,-762.28,0.00042191,30]
[392307920,1761322362880,-500.0,0.00042191,30]
[392307921,1761322362890,-500.0,0.00042191,30]
[392307922,1761322362899,-714.86,0.00042191,30]
[392307923,1761322362910,-401.91589451,0.00042465,30]
[392307924,1761322362920,-1094.31,0.00042465,30]
[392307925,1761322362931,-762.28,0.00042465,30]
[392307926,1761322362941,-500.0,0.00042465,30]
[392307927,1761322362951,-500.0,0.00042465,30]
[392307928,1761322362961,-714.86,0.00042465,30]
[392307929,1761322362972,-567.57,0.00042739,30]
[392307930,1761322362982,-500.0,0.00042739,30]
[392307931,1761322362991,-1094.31,0.00042739,30]
[392307932,1761322363001,-762.28,0.00042739,30]
[392307933,1761322363011,-500.0,0.00042739,30]
[392307934,1761322363020,-587.51410028,0.00042739,30]
[392307935,1761322363031,-714.86,0.00042739,30]
[392307936,1761322363041,-567.57,0.00043013,30]
[392307937,1761322363053,-500.0,0.00043013,30]
[392307938,1761322363062,-1094.31,0.00043013,30]
[392307939,1761322363072,-762.28,0.00043013,30]
[392307940,1761322363081,-452.47508679,0.00043013,30]
[392307941,1761322363091,-714.86,0.00043013,30]
[392307942,1761322363102,-567.57,0.00043287,30]
[392307943,1761322363111,-500.0,0.00043287,30]
[392307944,1761322363121,-1094.31,0.00043287,30]
[392307945,1761322363131,-762.28,0.00043287,30]
[392307946,1761322363140,-714.86,0.00043287,30]
[392307947,1761322363149,-567.57,0.00043561,30]
[392307948,1761322363159,-588.64,0.00043561,30]
[392307949,1761322363168,-1094.31,0.00043561,30]
[392307950,1761322363178,-762.28,0.00043561,30]
[392307951,1761322363188,-714.86,0.00043561,30]
[392307952,1761322363198,-15955.73126634,0.00043561,30]
[392307953,1761322363289,-308.02314667,0.0004,120]
[392307954,1761322363596,-182.38105333,0.0004,120]
[392307955,1761322363607,-151.47096386,0.0004,120]
[392307956,1761322367075,294.58,0.00013699,2]
[392307957,1761322367104,294.58,0.00020187,2]
[392307958,1761322367403,2062.0,0.00025,2]
[392307959,1761322368064,205.15567023,0.000235,3]
[392307963,1761322797349,249.01838049,0.0002739,10]
[392307964,1761322803781,10.98161951,0.0002739,10]
[392307970,1761323107460,568.76432977,0.00015,2]
[392307971,1761323107503,1490.2615482,0.00015,2]
[392307972,1761323107552,1490.2615482,0.00015,2]
[392307973,1761323107584,6210.23537278,0.00015,2]
[392307974,1761323107617,6210.23537278,0.00015,2]
[392307975,1761323107663,6210.23537278,0.00015,2]
[392307976,1761323107895,711490.2615482,0.00015,2]
[392307977,1761323107920,6210.23537278,0.00015,2]
[392307978,1761323107943,6210.23537278,0.00015,2]
[392307979,1761323107971,6210.23537278,0.00015,2]
[392307980,1761323107996,6210.23537278,0.00015,2]
[392307981,1761323108021,258.23895695,0.00015,2]
[392307997,1761323251505,217.5903233,0.00016,2]
[392308014,1761323418652,-204.53972,0.000175,2]
[392308015,1761323418676,-17.25963739,0.000175,2]
[392308023,1761323432369,-132.74036261,0.000175,2]
[392308024,1761323432379,-294.58,0.00026676,2]
[392308025,1761323432388,-1276.8814851,0.00028646,15]
[392308027,1761323432399,-566.40706203,0.00029,5]
[392308028,1761323432408,-233.54750743,0.0002999,2]
[392308029,1761323432418,-524.23682342,0.0002999,2]
[392308030,1761323432427,-5687.50820509,0.0003,5]
[392308031,1761323432436,-1347.0,0.0003,7]
[392308032,1761323432446,-294.58,0.00033165,2]
[392308033,1761323432455,-400.0,0.00035229,2]
[392308034,1761323432464,-152.38,0.0003523,2]
[392308035,1761323432474,-1836.7438712,0.00035921,2]
[392308036,1761323432483,-15070.73,0.0003662,2]
[392308038,1761323432492,-152.66569099,0.00036688,15]
[392308040,1761323432502,-927.60820628,0.00036688,9]
[392308042,1761323432511,-438.28000997,0.00036773,5]
[392308043,1761323432519,-422.32256876,0.00036773,5]
[392308044,1761323432529,-483.35601814,0.00036773,5]
[392308045,1761323432538,-500.0,0.00036773,5]
[392308047,1761323432547,-192.65728841,0.00036787,15]
[392308049,1761323432556,-160.52,0.00036787,2]
[392308051,1761323432565,-156.4,0.00036788,2]
[392308053,1761323432574,-1580.40565144,0.00036788,120]
[392308055,1761323432584,-396.9399534,0.00036788,2]
[392308057,1761323432594,-58772.81642308,0.00036788,2]
[392308059,1761323432603,-106497.49558163,0.00036788,2]
[392308061,1761323432611,-1210.0,0.00036788,2]
[392308062,1761323432620,-713.89853773,0.00036788,2]
[392308064,1761323432630,-367.60776943,0.00036788,2]
[392308067,1761323432639,-2827.79670752,0.00036788,2]
[392308068,1761323432648,-353.71900934,0.00036788,2]
[392308070,1761323432658,-1292.12565192,0.00036788,2]
[392308072,1761323432667,-23607.11027129,0.00036788,2]
[392308075,1761323432677,-8117.96167238,0.00036788,7]
[392308077,1761323432687,-633.30922051,0.00036788,6]
[392308078,1761323432696,-6716.63528515,0.00036788,7]
[392308080,1761323432705,-5264.59167425,0.00036788,2]
[392308083,1761323432715,-544.24418483,0.00036788,7]
[392308085,1761323432726,-351.94107612,0.00036788,2]
[392308087,1761323432735,-2492.00083333,0.00036788,2]
[392308088,1761323432744,-1879.49191545,0.00036788,2]
[392308091,1761323432754,-3799.1469492,0.00036788,7]
[392308092,1761323432763,-45976.24845987,0.00036788,2]
[392308095,1761323432775,-137495.13535142,0.00036788,2]
[392308097,1761323432786,-82168.84225949,0.00036788,2]
[392308099,1761323432797,-142272.72814551,0.00036788,2]
[392308101,1761323432808,-1254.41808677,0.00036788,2]
[392308105,1761323432834,-367.44,0.00036788,2]
[392308116,1761323438185,-3485.47484802,0.00036788,2]
[392308117,1761323438198,-423.82310137,0.00036788,2]
[392308120,1761323438287,-1140.5,0.00036788,2]
[392308134,1761323440311,-315.23890727,0.00036788,2]
[392308135,1761323440387,-1658.2599,0.00036788,2]
[392308136,1761323440399,-6020.7517457,0.00036788,2]
[392308137,1761323440485,-2365.41049443,0.00036788,2]
[392308138,1761323440498,-277143.00081176,0.00036788,2]
[392308139,1761323440508,-1372.83557782,0.00036788,2]
[392308140,1761323440518,-200.0,0.00036788,30]
[392308141,1761323440528,-16238.6216119,0.00036788,7]
[392308142,1761323440539,-26000.52995811,0.00036788,7]
[392308143,1761323440549,-2321.2850679,0.00036788,2]
[392308144,1761323440559,-48683.21412964,0.00036788,2]
[392308167,1761323538629,-158.19244243,0.00017,2]
[392308168,1761323753408,5308.618,0.00027397,120]
[392308170,1761323935486,235.4014847,0.0002739,120]
[392308192,1761324486001,-91.80755757,0.00017,2]
[392308194,1761324513785,-155.26,0.00017858,2]
[392308195,1761324513814,-39.74956309,0.00019482,2]
[392308202,1761324632468,-115.51043691,0.00019482,2]
[392308203,1761324632479,-155.26,0.00021105,2]
[392308204,1761324632489,-155.26,0.00022729,2]
[392308205,1761324632498,-155.26,0.00024352,2]
[392308206,1761324632509,-155.26,0.00025976,2]
[392308207,1761324632520,-155.26,0.00027599,2]
[392308208,1761324632530,-5016.31370596,0.0002888,2]
[392308209,1761324632540,-155.26,0.00029223,2]
[392308210,1761324632550,-390.546,0.00030156,25]
[392308211,1761324632559,-155.26,0.00030846,2]
[392308212,1761324632568,-155.26,0.0003247,2]
[392308213,1761324632578,-1455.0,0.00033999,3]
[392308214,1761324632588,-155.26,0.00034093,2]
[392308215,1761324632598,-3000.0,0.00035,8]
[392308216,1761324632607,-155.26,0.00035717,2]
[392308217,1761324632616,-300.0,0.00035717,2]
[392308218,1761324632626,-368.26,0.0003577,2]
[392308219,1761324632636,-211.0,0.000358,120]
[392308220,1761324632646,-2751.0,0.00035879,120]
[392308221,1761324632656,-152.53,0.00035896,2]
[392308222,1761324632665,-2451.36320663,0.00036,9]
[392308277,1761324638380,-548.63679337,0.00036,9]
[392308278,1761324638391,-533.13636562,0.00036043,2]
[392308279,1761324638404,-644.68541112,0.00036043,2]
[392308280,1761324638415,-15505.83024235,0.00036043,2]
[392308283,1761324640590,-725.34798091,0.00036043,2]
[392308284,1761324640600,-300.0,0.00036052,7]
[392308285,1761324640611,-228.76,0.0003612,2]
[392308286,1761324640622,-444.53814916,0.00036173,2]
[392308288,1761324640861,-555.46185084,0.00036173,2]
[392308289,1761324640871,-457.52749465,0.00036299,15]
[392308290,1761324640880,-195.83336577,0.00036299,15]
[392308291,1761324640890,-200.46048686,0.00036299,15]
[392308292,1761324640900,-65347.50019889,0.000363,7]
[392308293,1761324640909,-152.0,0.00036408,3]
[392308294,1761324640918,-7000.0,0.0003642,2]
[392308295,1761324640928,-152.66569099,0.00036675,15]
[392308296,1761324640938,-899.87031621,0.00036675,2]
[392308297,1761324640948,-500.0,0.00036773,2]
[392308298,1761324640957,-500.0,0.00036773,5]
[392308299,1761324640967,-500.0,0.00036773,5]
[392308300,1761324640977,-505.46793221,0.00036773,5]
[392308301,1761324640986,-500.0,0.00036774,2]
[392308302,1761324640996,-500.0,0.00036774,2]
[392308303,1761324641006,-519.72252991,0.00036775,30]
[392308304,1761324641015,-500.0,0.00036775,30]
[392308305,1761324641025,-500.0,0.00036775,2]
[392308306,1761324641035,-500.0,0.00036775,7]
[392308307,1761324641046,-40854.56450657,0.00036775,2]
[392308308,1761324641056,-371.681602,0.00036775,2]
[392308309,1761324641066,-7379.76513439,0.00036775,2]
[392308310,1761324641077,-550.0,0.00036775,2]
[392308311,1761324641086,-1023.96654455,0.00036775,2]
[392308312,1761324641096,-1060.51664581,0.00036775,7]
[392308313,1761324641106,-2489.34534861,0.00036775,2]
[392308314,1761324641116,-5220.898587,0.00036775,2]
[392308315,1761324641125,-6000.0,0.00036775,2]
[392308316,1761324641135,-380.8618433,0.00036775,2]
[392308317,1761324641145,-1491.19156126,0.00036775,2]
[392308318,1761324641155,-1048.49022591,0.00036775,2]
[392308319,1761324641164,-475.47831016,0.00036775,7]
[392308320,1761324641173,-5089.26320982,0.00036775,2]
[392308321,1761324641183,-1194.2437363,0.00036775,2]
[392308322,1761324641192,-5284.75625457,0.00036775,14]
[392308323,1761324641202,-571.36892847,0.00036775,2]
[392308324,1761324641211,-150.0,0.00036775,2]
[392308325,1761324641220,-7879.21624934,0.00036775,2]
[392308326,1761324641230,-5278.85311081,0.00036775,14]
[392308327,1761324641239,-1395.72699773,0.00036775,2]
[392308328,1761324641248,-635.453669,0.00036775,2]
[392308329,1761324641257,-223.16796571,0.00036775,5]
[392308330,1761324641266,-217.84748435,0.00036775,2]
[392308331,1761324641275,-10390.13087896,0.00036775,2]
[392308332,1761324641284,-579.46668592,0.00036775,7]
[392308333,1761324641294,-6404.77244238,0.00036775,5]
[392308334,1761324641304,-2370.80660308,0.00036775,7]
[392308335,1761324641313,-1035.90977184,0.00036775,7]
[392308336,1761324641322,-150.0,0.00036775,2]
[392308337,1761324641331,-458452.0,0.00036775,30]
[392308338,1761324641342,-200.0,0.00036775,30]
[392308339,1761324641352,-85229.72671875,0.00036776,2]
[392308340,1761324641362,-4014.1971725,0.00036785,2]
[392308341,1761324641372,-43231.959121,0.00036785,2]
[392308342,1761324641382,-3435.2149769,0.00036785,2]
[392308343,1761324641390,-2576.7887525,0.00036785,2]
[392308344,1761324641400,-3169.1522826,0.00036785,2]
[392308345,1761324641409,-500.0,0.00036787,30]
[392308346,1761324641419,-500.0,0.00036787,30]
[392308347,1761324641428,-500.0,0.00036787,30]
[392308348,1761324641442,-500.0,0.00036787,30]
[392308349,1761324641452,-500.0,0.00036787,30]
[392308350,1761324641461,-500.0,0.00036787,30]
[392308351,1761324641471,-500.0,0.00036787,30]
[392308352,1761324641481,-500.0,0.00036787,30]
[392308353,1761324641490,-500.0,0.00036787,30]
[392308354,1761324641499,-500.0,0.00036787,30]
[392308355,1761324641509,-988.6850191,0.00036788,2]
[392308356,1761324641519,-168.0,0.00037119,120]
[392308357,1761324641528,-150.0,0.00037208,7]
[392308358,1761324641537,-150.0,0.00037208,7]
[392308359,1761324641547,-150.0,0.00037208,7]
[392308360,1761324641556,-150.0,0.00037208,7]
[392308361,1761324641565,-150.0,0.00037208,7]
[392308362,1761324641575,-150.0,0.00037208,7]
[392308363,1761324641585,-150.0,0.00037208,7]
[392308364,1761324641594,-1000.0,0.00037321,2]
[392308365,1761324641603,-500.0,0.00037321,5]
[392308366,1761324641612,-899.87031615,0.00037338,2]
[392308367,1761324641622,-571.14525568,0.00037391,2]
[392308368,1761324641631,-7000.0,0.0003742,2]
[392308369,1761324641641,-228.76,0.00037474,2]
[392308370,1761324641650,-619.61,0.00037521,120]
[392308371,1761324641660,-321.44,0.00037543,2]
[392308372,1761324641670,-150.0,0.00037775,2]
[392308373,1761324641679,-200.0,0.00037776,2]
[392308374,1761324641688,-210.94039932,0.00037789,2]
[392308375,1761324641698,-152.66569099,0.00037839,15]
[392308376,1761324641707,-1517.37453729,0.00037868,2]
[392308377,1761324641717,-1579.21,0.00037947,2]
[392308378,1761324641726,-899.87031615,0.00038,2]
[392308379,1761324641736,-250.0,0.00038002,2]
[392308380,1761324641745,-168.0,0.0003812,2]
[392308381,1761324641755,-500.65389565,0.00038232,5]
[392308382,1761324641764,-150.0,0.00038242,7]
[392308383,1761324641774,-174.97,0.00038263,2]
[392308384,1761324641784,-2184.98,0.00038275,2]
[392308385,1761324641795,-150.0,0.00038278,2]
[392308386,1761324641805,-283.60249089,0.00038327,2]
[392308387,1761324641911,-17805.2072179,0.00038346,3]
[392308388,1761324641971,-384.42840412,0.00038356,30]
[392308389,1761324641981,-500.0,0.00038356,30]
[392308390,1761324641993,-500.0,0.00038356,30]
[392308391,1761324642003,-500.0,0.00038356,30]
[392308392,1761324642013,-500.0,0.00038356,30]
[392308393,1761324642022,-500.0,0.00038356,30]
[392308394,1761324642032,-591.87,0.00038356,30]
[392308395,1761324642043,-500.0,0.00038356,30]
[392308396,1761324642052,-636.66,0.00038356,30]
[392308397,1761324642061,-500.0,0.00038356,30]
[392308398,1761324642072,-500.0,0.00038356,30]
[392308399,1761324642082,-604.16,0.00038356,30]
[392308400,1761324642092,-500.0,0.00038356,30]
[392308401,1761324642103,-500.0,0.00038356,30]
[392308402,1761324642113,-518.76,0.00038356,30]
[392308403,1761324642122,-522.06,0.00038356,30]
[392308404,1761324642131,-500.0,0.00038356,30]
[392308405,1761324642141,-500.0,0.00038356,30]
[392308406,1761324642151,-500.0,0.00038356,30]
[392308407,1761324642161,-500.0,0.00038356,30]
[392308408,1761324642170,-500.0,0.00038356,30]
[392308409,1761324642179,-500.82,0.00038356,30]
[392308410,1761324642191,-500.0,0.00038356,30]
[392308411,1761324642200,-500.0,0.00038356,30]
[392308412,1761324642210,-500.0,0.00038356,30]
[392308413,1761324642219,-167.07812689,0.00038356,30]
[392308414,1761324642229,-500.0,0.00038356,30]
[392308415,1761324642238,-770.49,0.00038356,30]
[392308416,1761324642248,-500.0,0.00038356,30]
[392308417,1761324642257,-500.0,0.00038356,30]
[392308418,1761324642267,-416.8461179,0.00038356,30]
[392308419,1761324642277,-500.0,0.00038356,30]
[392308420,1761324642287,-500.0,0.00038356,30]
[392308421,1761324642297,-500.0,0.00038356,30]
[392308422,1761324642307,-500.0,0.00038356,30]
[392308423,1761324642316,-500.0,0.00038356,30]
[392308424,1761324642326,-500.0,0.00038356,2]
[392308425,1761324642335,-500.0,0.00038356,30]
[392308426,1761324642345,-500.0,0.00038356,30]
[392308427,1761324642354,-500.0,0.00038356,30]
[392308428,1761324642364,-500.0,0.00038356,30]
[392308429,1761324642374,-500.0,0.00038356,30]
[392308430,1761324642384,-500.0,0.00038356,30]
[392308431,1761324642393,-500.0,0.00038356,30]
[392308432,1761324642403,-500.0,0.00038356,30]
[392308433,1761324642413,-500.0,0.00038356,30]
[392308434,1761324642422,-500.0,0.00038356,30]
[392308435,1761324642431,-311.29672647,0.00038356,30]
[392308436,1761324642445,-500.0,0.00038356,30]
[392308437,1761324642454,-500.0,0.00038356,30]
[392308438,1761324642463,-500.0,0.00038356,30]
[392308439,1761324642472,-500.0,0.00038356,30]
[392308440,1761324642482,-500.0,0.00038356,30]
[392308441,1761324642492,-500.0,0.00038356,30]
[392308442,1761324642501,-202.32477001,0.00038356,30]
[392308443,1761324642512,-500.0,0.00038356,30]
[392308444,1761324642521,-500.0,0.00038356,30]
[392308445,1761324642531,-500.0,0.00038356,30]
[392308446,1761324642540,-500.0,0.00038356,30]
[392308447,1761324642549,-500.0,0.00038356,30]
[392308448,1761324642559,-500.0,0.00038356,30]
[392308449,1761324642568,-500.0,0.00038356,30]
[392308450,1761324642578,-500.0,0.00038356,30]
[392308451,1761324642587,-500.0,0.00038356,30]
[392308452,1761324642597,-547.37,0.00038356,30]
[392308453,1761324642606,-500.0,0.00038356,30]
[392308454,1761324642615,-500.0,0.00038356,30]
[392308455,1761324642624,-500.0,0.00038356,30]
[392308456,1761324642633,-500.0,0.00038356,30]
[392308457,1761324642643,-804.76,0.00038356,30]
[392308458,1761324642652,-500.0,0.00038356,30]
[392308459,1761324642661,-500.0,0.00038356,30]
[392308460,1761324642671,-500.0,0.00038356,30]
[392308461,1761324642680,-500.0,0.00038356,30]
[392308462,1761324642689,-500.0,0.00038356,30]
[392308463,1761324642699,-500.0,0.00038356,30]
[392308464,1761324642708,-500.0,0.00038356,30]
[392308465,1761324642716,-500.0,0.00038356,30]
[392308466,1761324642726,-500.0,0.00038356,30]
[392308467,1761324642736,-500.0,0.00038356,30]
[392308468,1761324642746,-500.0,0.00038356,30]
[392308469,1761324642755,-500.0,0.00038356,30]
[392308470,1761324642765,-500.0,0.00038356,30]
[392308471,1761324642774,-500.0,0.00038356,30]
[392308472,1761324642784,-500.0,0.00038356,30]
[392308473,1761324642793,-500.0,0.00038356,30]
[392308474,1761324642803,-500.0,0.00038356,30]
[392308475,1761324642813,-500.0,0.00038356,30]
[392308476,1761324642822,-500.0,0.00038356,30]
[392308477,1761324642832,-500.0,0.00038356,30]
[392308478,1761324642842,-500.0,0.00038356,30]
[392308479,1761324642851,-500.0,0.00038356,30]
[392308480,1761324642861,-500.0,0.00038356,30]
[392308481,1761324642870,-500.0,0.00038356,30]
[392308482,1761324642880,-500.0,0.00038356,30]
[392308483,1761324642890,-500.0,0.00038356,30]
[392308484,1761324642899,-500.0,0.00038356,30]
[392308485,1761324642909,-500.0,0.00038356,30]
[392308486,1761324642918,-500.0,0.00038356,30]
[392308487,1761324642927,-500.0,0.00038356,30]
[392308488,1761324642938,-501.15976672,0.00038356,30]
[392308489,1761324642948,-500.0,0.00038356,30]
[392308490,1761324642958,-500.0,0.00038356,30]
[392308491,1761324642967,-500.0,0.00038356,30]
[392308492,1761324642978,-2333.2,0.00038356,30]
[392308493,1761324642988,-500.0,0.00038356,30]
[392308494,1761324642997,-500.0,0.00038356,30]
[392308495,1761324643007,-500.0,0.00038356,30]
[392308496,1761324643016,-500.0,0.00038356,30]
[392308497,1761324643026,-500.0,0.00038356,30]
[392308498,1761324643036,-553.5,0.00038356,30]
[392308499,1761324643047,-500.0,0.00038356,30]
[392308500,1761324643056,-500.0,0.00038356,30]
[392308501,1761324643066,-500.0,0.00038356,30]
[392308502,1761324643075,-500.0,0.00038356,30]
[392308503,1761324643085,-602.54,0.00038356,30]
[392308504,1761324643094,-500.0,0.00038356,30]
[392308505,1761324643103,-173.23118484,0.00038356,2]
[392308506,1761324643113,-500.0,0.00038356,30]
[392308508,1761324643123,-500.0,0.00038356,30]
[392308510,1761324643132,-500.0,0.00038356,30]
[392308511,1761324643141,-500.0,0.00038356,30]
[392308512,1761324643151,-500.0,0.00038356,30]
[392308513,1761324643160,-540.37,0.00038356,30]
[392308514,1761324643169,-500.0,0.00038356,30]
[392308515,1761324643179,-500.0,0.00038356,30]
[392308516,1761324643188,-500.0,0.00038356,30]
[392308517,1761324643197,-500.0,0.00038356,30]
[392308518,1761324643207,-500.0,0.00038356,30]
[392308519,1761324643216,-518.94,0.00038356,30]
[392308520,1761324643226,-244.65426122,0.00038356,30]
[392308521,1761324643236,-692.94,0.00038356,30]
[392308522,1761324643245,-500.0,0.00038356,30]
[392308524,1761324643255,-500.0,0.00038356,30]
[392308526,1761324643264,-500.0,0.00038356,30]
[392308528,1761324643273,-732.55,0.00038356,30]
[392308529,1761324643282,-500.0,0.00038356,30]
[392308530,1761324643291,-500.0,0.00038356,30]
[392308531,1761324643300,-511.0,0.00038356,30]
[392308532,1761324643310,-425.0,0.00038356,30]
[392308533,1761324643319,-574.62,0.00038356,30]
[392308534,1761324643328,-632.27,0.00038356,30]
[392308535,1761324643338,-500.0,0.00038356,30]
[392308536,1761324643348,-610.23,0.00038356,30]
[392308537,1761324643357,-533.39276155,0.00038356,30]
[392308539,1761324643367,-500.0,0.00038356,30]
[392308541,1761324643378,-500.0,0.00038356,30]
[392308542,1761324643387,-500.0,0.00038356,30]
[392308543,1761324643397,-500.0,0.00038356,30]
[392308544,1761324643407,-679.35,0.00038356,30]
[392308545,1761324643417,-614.18,0.00038356,30]
[392308546,1761324643427,-503.15112926,0.00038356,30]
[392308547,1761324643443,-500.0,0.00038356,30]
[392308548,1761324643453,-500.0,0.00038356,30]
[392308549,1761324643463,-517.32,0.00038356,30]
[392308550,1761324643472,-500.0,0.00038356,30]
[392308551,1761324643483,-613.72,0.00038356,30]
[392308552,1761324643492,-500.0,0.00038356,30]
[392308553,1761324643502,-32333.82,0.00038356,30]
[392308554,1761324643514,-307.17,0.00038356,2]
[392308555,1761324643523,-500.0,0.00038356,30]
[392308556,1761324643533,-500.0,0.00038356,30]
[392308557,1761324643542,-500.0,0.00038356,30]
[392308558,1761324643552,-527.71,0.00038356,30]
[392308559,1761324643561,-500.0,0.00038356,30]
[392308560,1761324643571,-707.52,0.00038356,30]
[392308561,1761324643581,-535.59,0.00038356,30]
[392308562,1761324643590,-500.0,0.00038356,30]
[392308563,1761324643600,-500.0,0.00038356,30]
[392308564,1761324643610,-500.0,0.00038356,30]
[392308565,1761324643620,-500.0,0.00038356,30]
[392308566,1761324643630,-500.0,0.00038356,30]
[392308567,1761324643639,-425.68962481,0.00038356,30]
[392308568,1761324643648,-500.0,0.00038356,30]
[392308569,1761324643658,-500.0,0.00038356,30]
[392308570,1761324643667,-500.0,0.00038356,30]
[392308571,1761324643676,-500.0,0.00038356,30]
[392308572,1761324643686,-256.29153562,0.00038356,30]
[392308573,1761324643695,-500.0,0.00038356,30]
[392308574,1761324643704,-500.0,0.00038356,30]
[392308575,1761324643714,-500.0,0.00038356,30]
[392308576,1761324643724,-500.0,0.00038356,30]
[392308577,1761324643733,-500.0,0.00038356,30]
[392308578,1761324643743,-500.0,0.00038356,30]
[392308579,1761324643753,-500.0,0.00038356,30]
[392308580,1761324643764,-500.0,0.00038356,30]
[392308581,1761324643775,-500.0,0.00038356,30]
[392308582,1761324643785,-500.0,0.00038356,30]
[392308583,1761324643794,-500.0,0.00038356,30]
[392308584,1761324643803,-500.0,0.00038356,30]
[392308585,1761324643813,-396.92684041,0.00038356,30]
[392308586,1761324643822,-500.0,0.00038356,30]
[392308587,1761324643831,-500.0,0.00038356,30]
[392308588,1761324643841,-500.0,0.00038356,30]
[392308589,1761324643850,-202.44866365,0.00038356,30]
[392308590,1761324643859,-500.0,0.00038356,30]
[392308591,1761324643868,-500.0,0.00038356,30]
[392308592,1761324643877,-500.0,0.00038356,30]
[392308593,1761324643887,-500.0,0.00038356,30]
[392308594,1761324643896,-500.0,0.00038356,30]
[392308595,1761324643905,-500.0,0.00038356,30]
[392308596,1761324643915,-547.57,0.00038356,30]
[392308597,1761324643924,-500.0,0.00038356,30]
[392308598,1761324643934,-587.76,0.00038356,30]
[392308599,1761324643944,-1355.78,0.00038356,30]
[392308600,1761324643953,-500.0,0.00038356,30]
[392308601,1761324643963,-500.0,0.00038356,30]
[392308602,1761324643973,-500.0,0.00038356,30]
[392308603,1761324643983,-500.0,0.00038356,30]
[392308604,1761324643994,-500.0,0.00038356,30]
[392308605,1761324644003,-500.0,0.00038356,30]
[392308606,1761324644012,-500.0,0.00038356,30]
[392308607,1761324644022,-500.0,0.00038356,30]
[392308608,1761324644031,-500.0,0.00038356,30]
[392308609,1761324644041,-500.0,0.00038356,30]
[392308610,1761324644053,-547.41,0.00038356,30]
[392308611,1761324644062,-500.0,0.00038356,30]
[392308612,1761324644072,-500.0,0.00038356,30]
[392308613,1761324644082,-500.0,0.00038356,30]
[392308614,1761324644092,-1756.17,0.00038356,30]
[392308615,1761324644101,-500.0,0.00038356,30]
[392308616,1761324644111,-500.0,0.00038356,30]
[392308617,1761324644120,-500.0,0.00038356,30]